bitfinex/quotes_ETHUSD_20260209
["timestamp","ask_amount","ask_price","bid_price","bid_amount"]
[1770653784772,1.21878185,2054.6,2053.3,1.57980123]
[1770653785372,1.63951056,2053.8,2052.6,4.87182056]
[1770653785569,1.63951056,2054.2,2052.8,1.21782174]
[1770653785798,2.85829241,2054.6,2053.1,1.57980123]
[1770653786212,2.85829241,2054.6,2053.2,2.79741276]
[1770653786406,1.63951056,2054.5,2053.2,1.21761153]
[1770653787007,1.21878185,2054.6,2053.2,2.79741276]
[1770653787184,1.21878185,2054.6,2053.3,1.57980123]
[1770653787383,1.21878185,2054.6,2053.3,4.98480123]
[1770653788011,1.21878185,2054.6,2053.4,1.57980123]
[1770653788177,1.21878185,2054.6,2053.5,2.79723487]
[1770653788178,0.002,2054.6,2053.5,2.79723487]
[1770653789317,0.002,2054.6,2053.5,1.21743364]
[1770653789612,1.64151056,2054.6,2053.5,1.21743364]
[1770653789977,1.64151056,2054.6,2053.4,1.21744677]
[1770653790410,0.002,2053.6,2053.2,1.21758629]
[1770653790584,0.002,2053.6,2052.9,0.1024]
[1770653790585,0.002,2053.6,2052.9,1.21775338]
[1770653791095,0.002,2053.6,2053.1,0.5]
[1770653792992,0.002,2053.6,2053.1,1.71766561]
[1770653793593,0.002,2053.8,2053.2,1.57980123]
[1770653794499,0.002,2053.8,2053.3,1.21755223]
[1770653797015,0.002,2053.8,2053.1,0.5]
[1770653797202,0.002,2053.8,2053.0,1.21769987]
[1770653797520,0.002,2053.8,2052.9,1.21774084]
[1770653797714,0.002,2053.8,2053.0,1.21772953]
[1770653798813,0.002,2053.8,2053.3,1.21752044]
[1770653799014,0.002,2053.8,2053.2,0.5]
[1770653799598,0.002,2053.8,2053.2,1.71760557]
[1770653800007,0.002,2053.8,2053.2,0.5]
[1770653800524,0.002,2053.8,2053.1,1.21763108]
[1770653800721,0.002,2053.8,2053.2,1.21760858]
[1770653801231,0.002,2053.8,2052.9,1.21778946]
[1770653802009,1.64151056,2053.8,2052.7,1.21790612]
[1770653802211,0.002,2053.8,2052.8,1.2178451]
[1770653802799,1.64151056,2053.8,2053.3,0.001]
[1770653803124,1.64151056,2053.8,2052.7,1.21787264]
[1770653803125,0.002,2053.6,2052.7,1.21787264]
[1770653803325,0.002,2053.6,2053.0,0.001]
[1770653807146,0.002,2053.8,2053.0,0.001]
[1770653807147,0.002,2053.8,2053.0,1.58845739]
[1770653807317,0.002,2053.8,2053.1,6.67512822]
[1770653807641,1.58150328,2054.3,2053.0,1.21871833]
[1770653808632,1.58150328,2054.3,2053.0,1.21872929]
[1770653809350,1.21701879,2054.2,2053.0,0.001]
[1770653809852,2.79852207,2054.2,2053.0,0.001]
[1770653810452,1.58150328,2054.1,2053.0,0.001]
[1770653811428,1.58150328,2053.9,2053.0,0.001]
[1770653811631,1.58150328,2053.8,2053.0,0.001]
[1770653812136,3.402,2053.9,2053.0,0.001]
[1770653813536,1.21725581,2053.8,2053.0,0.001]
[1770653814048,1.21725581,2053.8,2053.2,0.5]
[1770653814543,1.21722626,2053.9,2053.2,0.5]
[1770653814735,1.21695954,2054.4,2053.2,0.5]
[1770653815344,1.21695954,2054.4,2053.2,0.501]
[1770653815518,0.002,2053.6,2053.3,1.21755223]
[1770653815848,0.002,2053.8,2053.3,1.21755223]
[1770653820523,1.21695954,2054.4,2053.4,1.58745739]
[1770653820824,1.2188089,2054.6,2053.6,1.58745739]
[1770653821622,1.2188089,2054.6,2053.8,1.58745739]
[1770653821928,0.002,2054.6,2053.8,1.58745739]
[1770653822257,0.002,2054.6,2053.8,3.402]
[1770653822837,1.21874357,2054.7,2053.9,1.58745739]
[1770653822838,0.002,2054.7,2053.9,1.58745739]
[1770653823138,0.002,2054.9,2054.0,1.58745739]
[1770653823322,3.402,2055.9,2054.3,11.10142337]
[1770653823520,4.86649361,2055.8,2054.6,1.21678185]
[1770653823772,4.86649361,2055.8,2054.7,1.58745739]
[1770653825058,0.002,2055.8,2054.7,1.58745739]
[1770653825224,0.002,2055.8,2054.8,1.58745739]
[1770653825428,0.002,2056.0,2055.0,1.58745739]
[1770653825625,0.002,2056.2,2055.4,1.58745739]
[1770653825854,0.002,2056.2,2055.3,1.21636744]
[1770653825855,1.21785454,2056.2,2055.3,1.21636744]
[1770653826029,1.21785454,2056.2,2055.3,4.61736744]
[1770653826231,0.002,2056.2,2055.4,1.58745739]
[1770653827451,1.21542126,2056.9,2055.4,1.58745739]
[1770653827653,4.86168506,2057.1,2055.6,1.58745739]
[1770653827961,0.002,2056.0,2055.6,1.58745739]
[1770653828149,0.002,2056.2,2055.6,1.58745739]
[1770653828344,4.86168506,2057.1,2056.0,1.58745739]
[1770653828345,0.002,2057.1,2056.0,1.58745739]
[1770653828546,0.002,2057.1,2055.9,3.401]
[1770653829653,1.58350328,2057.1,2055.9,3.401]
[1770653830035,1.21536217,2057.0,2055.8,1.21603944]
[1770653830236,1.58150328,2056.9,2055.7,1.21608991]
[1770653830449,1.58150328,2056.9,2055.9,1.21601193]
[1770653830649,1.21536217,2057.0,2055.9,1.21601193]
[1770653831057,1.21536217,2057.0,2055.9,2.80346932]
[1770653831267,4.61731865,2057.1,2056.0,1.58745739]
[1770653831565,6.44058806,2058.1,2056.4,1.58745739]
[1770653832248,6.44058806,2058.1,2056.7,12.68888076]
[1770653832451,4.85908478,2058.1,2056.7,3.4]
[1770653832761,4.85908478,2058.1,2056.8,1.58745739]
[1770653832931,1.21453556,2058.4,2056.8,1.58745739]
[1770653833126,1.21453556,2058.4,2056.9,0.1024]
[1770653833333,1.21453556,2058.4,2057.0,12.68888076]
[1770653833553,1.21453556,2058.4,2057.1,1.58745739]
[1770653833831,1.58150328,2058.3,2056.7,1.68985739]
[1770653834030,1.58150328,2058.3,2057.0,3.399]
[1770653834231,1.21465358,2058.2,2057.1,1.21530309]
[1770653834741,1.21441756,2058.6,2057.2,1.58745739]
[1770653835070,1.21424061,2058.9,2057.9,1.58745739]
[1770653835366,1.21424061,2058.9,2058.0,3.399]
[1770653835661,1.23404879,2059.0,2058.0,3.399]
[1770653835841,1.23405069,2059.0,2058.1,1.58460471]
[1770653836245,1.23405069,2059.0,2057.7,1.2149308]
[1770653836565,1.23405069,2059.0,2057.5,1.21505026]
[1770653836566,1.72367929,2058.9,2057.5,1.21505026]
[1770653836787,1.72367929,2058.9,2057.5,4.86024602]
[1770653836933,1.72367929,2058.9,2057.7,1.21493446]
[1770653837135,1.72367929,2058.9,2057.5,1.21501679]
[1770653837373,1.72367929,2058.9,2057.6,1.21500569]
[1770653837537,1.22367929,2058.9,2057.6,1.21498335]
[1770653838079,1.22367929,2058.9,2057.5,1.21503394]
[1770653838384,1.21429959,2058.8,2057.5,1.21503394]
[1770653839387,1.21429959,2058.8,2057.6,1.73222496]
[1770653839569,2.82452461,2058.8,2057.5,1.21503394]
[1770653840680,0.002,2058.7,2057.4,4.86048724]
[1770653841192,0.002,2058.7,2056.8,1.21547955]
[1770653841193,1.61022502,2058.4,2056.8,1.21547955]
[1770653841360,1.61022502,2058.2,2056.4,1.73222496]
[1770653841559,1.61022502,2058.2,2056.7,6.59422623]
[1770653841867,5.00622502,2058.6,2056.7,1.73222496]
[1770653842073,1.61022502,2058.5,2056.8,1.21544379]
[1770653842373,1.68332444,2058.4,2056.3,6.3439551]
[1770653842676,1.61022502,2057.8,2056.3,4.61173419]
[1770653842882,3.396,2057.7,2056.3,4.61173419]
[1770653843098,1.61022502,2057.6,2056.1,1.21589402]
[1770653843273,1.61022502,2057.6,2056.2,1.2157964]
[1770653843478,1.61022502,2057.6,2056.1,1.21586201]
[1770653843792,1.61022502,2057.6,2055.8,3.396]
[1770653844111,1.61022502,2057.6,2056.1,4.86356646]
[1770653844281,1.61022502,2057.6,2056.1,1.21586451]
[1770653844484,1.61022502,2057.6,2056.3,1.21575216]
[1770653844790,1.21506682,2057.5,2055.9,2.94823741]
[1770653844985,2.82529184,2057.5,2055.9,2.94823741]
[1770653845187,1.61022502,2057.4,2055.9,1.21601245]
[1770653845574,1.21506682,2057.5,2056.0,1.73222496]
[1770653846390,1.21506682,2057.5,2055.8,1.21602458]
[1770653846391,1.61022502,2057.4,2055.8,1.21602458]
[1770653846708,2.82540997,2057.3,2055.7,4.86443349]
[1770653847785,2.82540997,2057.3,2055.7,6.59665845]
[1770653848185,1.21518495,2057.3,2055.8,1.73222496]
[1770653848384,2.82540997,2057.3,2055.8,1.73222496]
[1770653849300,4.8607398,2057.5,2055.9,2.94823741]
[1770653850008,6.47096482,2057.5,2055.9,2.94823741]
[1770653850208,1.61022502,2057.4,2055.9,2.94823741]
[1770653850382,1.61022502,2057.4,2056.0,1.73222496]
[1770653850706,4.86026731,2057.6,2056.1,1.83462496]
[1770653850894,1.21500777,2057.6,2056.3,1.73222496]
[1770653851081,1.21500777,2057.6,2056.5,1.73222496]
[1770653851276,1.21500777,2057.6,2056.6,2.94782352]
[1770653851707,1.21500777,2057.6,2056.6,1.21559856]
[1770653852305,1.21500777,2057.6,2056.5,1.21561391]
[1770653852815,1.21500777,2057.6,2056.6,1.73222496]
[1770653853317,1.21500777,2057.6,2056.5,1.73222496]
[1770653853685,4.61099137,2057.7,2056.5,1.73222496]
[1770653854211,1.61022502,2057.6,2056.2,1.215792]
[1770653854400,4.61099137,2057.7,2056.3,1.73222496]
[1770653855000,1.61022502,2057.6,2056.2,1.215792]
[1770653855384,1.21506682,2057.5,2056.1,0.001]
[1770653858201,1.21506682,2057.5,2056.2,1.73222496]
[1770653858406,1.21504868,2057.6,2056.3,1.83462496]
[1770653859613,2.82493761,2058.1,2056.5,1.73222496]
[1770653859807,1.21471259,2058.1,2056.7,1.73222496]
[1770653861209,1.21471259,2058.1,2056.6,11.10142337]
[1770653861210,1.21471259,2058.1,2056.9,1.73222496]
[1770653861398,4.61069364,2058.2,2056.9,1.73222496]
[1770653861601,4.61069364,2058.2,2057.1,1.73222496]
[1770653862004,6.22091866,2058.2,2057.0,1.21536217]
[1770653862203,1.61022502,2058.1,2056.5,4.8625203]
[1770653862422,1.61022502,2058.1,2056.7,1.21553421]
[1770653862625,1.61022502,2058.1,2056.4,5.12822496]
[1770653862911,1.61022502,2058.1,2056.6,1.21554554]
[1770653863821,1.61022502,2057.9,2056.5,4.86262711]
[1770653864427,1.61022502,2057.9,2056.4,5.12822496]
[1770653864632,1.55472502,2057.9,2056.4,3.396]
[1770653864953,1.55472502,2057.9,2056.4,4.61171444]
[1770653865135,1.55472502,2057.9,2056.4,3.396]
[1770653865312,1.55472502,2057.9,2056.1,1.21684626]
[1770653865515,1.55472502,2057.9,2056.1,1.21686578]
[1770653865816,1.67471495,2057.4,2056.1,0.001]
[1770653866016,1.67471495,2057.2,2056.1,0.001]
[1770653866216,1.67471495,2057.2,2055.6,0.001]
[1770653866217,0.1024,2057.1,2055.6,0.001]
[1770653866437,1.67471495,2056.8,2055.6,0.001]
[1770653866639,1.67471495,2056.8,2055.7,1.21609764]
[1770653866814,1.67471495,2056.8,2056.3,0.001]
[1770653867020,1.67471495,2056.8,2056.0,0.001]
[1770653867349,1.67471495,2056.8,2055.6,0.001]
[1770653867940,1.67471495,2056.6,2055.6,0.001]
[1770653868113,5.07071495,2056.6,2055.6,0.001]
[1770653868559,1.67471495,2056.5,2055.6,0.001]
[1770653869243,3.396,2056.6,2055.6,0.001]
[1770653869756,1.21553945,2056.7,2055.6,1.75332566]
[1770653870828,1.21524402,2057.2,2055.7,1.21613075]
[1770653871233,2.88995897,2057.2,2055.7,1.21613075]
[1770653871829,2.88995897,2057.2,2055.9,0.5]
[1770653872042,1.21524402,2057.2,2055.9,2.25232566]
[1770653872431,1.21524402,2057.2,2056.0,1.75232566]
[1770653872952,4.86075808,2057.3,2056.1,1.21589416]
[1770653875151,6.53547303,2057.3,2056.0,1.21591878]
[1770653875534,6.53547303,2057.3,2055.9,4.86399791]
[1770653875535,6.53547303,2057.3,2055.9,1.21597742]
[1770653875846,1.67471495,2057.2,2056.0,1.21594494]
[1770653877256,1.21530309,2057.1,2055.8,2.96839726]
[1770653877421,1.21530309,2057.1,2055.9,1.75232566]
[1770653877821,1.21530309,2057.1,2056.0,0.5]
[1770653878235,1.21530309,2057.1,2056.0,0.9767]
[1770653878440,2.89001804,2057.1,2056.0,0.9767]
[1770653878747,1.67471495,2057.0,2056.0,0.4767]
[1770653879252,1.21542126,2056.9,2056.1,0.001]
[1770653879429,3.397,2056.8,2056.1,0.001]
[1770653879952,5.07171495,2056.8,2056.1,0.001]
[1770653880151,5.07171495,2056.8,2055.6,0.001]
[1770653880576,1.67471495,2056.7,2055.6,0.001]
[1770653881253,1.21559856,2056.6,2055.6,0.001]
[1770653881656,1.21559856,2056.6,2055.6,1.75332566]
[1770653881953,1.21559856,2056.6,2055.6,0.001]
[1770653882258,1.21559856,2056.6,2055.6,1.75332566]
[1770653882448,8.25939424,2056.7,2055.6,1.75332566]
[1770653882449,4.61258672,2056.7,2055.6,1.75332566]
[1770653882755,4.61258672,2056.7,2055.8,0.5]
[1770653883256,4.61258672,2056.7,2055.8,1.71603614]
[1770653884231,1.21558672,2056.7,2055.8,1.71603614]
[1770653885433,4.86170726,2056.9,2055.8,1.71603614]
[1770653885633,4.86170726,2056.9,2055.8,0.5]
[1770653885845,4.86215782,2057.0,2055.8,1.71606721]
[1770653886044,4.86215782,2057.0,2055.9,1.75232566]
[1770653886849,4.86215782,2057.0,2055.9,5.62232566]
[1770653887051,4.86215782,2057.0,2056.0,1.75232566]
[1770653887549,4.86215782,2057.0,2056.0,1.21593592]
[1770653887742,6.53687277,2057.0,2055.8,0.5]
[1770653888081,6.53687277,2057.0,2055.7,1.21610131]
[1770653888266,1.67471495,2056.9,2055.7,1.21612683]
[1770653888857,1.67471495,2056.9,2055.6,4.61416483]
[1770653889568,1.21548035,2056.8,2055.8,1.75232566]
[1770653890581,4.86156918,2057.0,2055.8,1.75232566]
[1770653891572,4.86156918,2057.0,2056.0,1.75232566]
[1770653891573,1.21536217,2057.0,2056.0,1.75232566]
[1770653891873,1.21536217,2057.0,2055.9,1.21601245]
[1770653892279,1.21536217,2057.0,2056.0,0.001]
[1770653892573,0.002,2056.8,2056.0,0.001]
[1770653892985,0.002,2056.8,2055.6,10.01508037]
[1770653892986,1.67671495,2056.8,2055.6,0.001]
[1770653893277,1.67471495,2056.5,2055.6,0.001]
[1770653893466,3.397,2056.4,2055.6,0.001]
[1770653893667,1.2157759,2056.3,2055.6,0.001]
[1770653894254,1.2157759,2056.3,2055.2,0.001]
[1770653895284,1.67471495,2056.2,2055.2,0.001]
[1770653895655,1.21589416,2056.1,2055.2,0.001]
[1770653896477,1.21589416,2056.1,2055.2,1.70176628]
[1770653896862,1.21589416,2056.1,2055.2,0.001]
[1770653897285,1.21589416,2056.1,2055.2,1.70176628]
[1770653897976,4.86357667,2056.2,2055.2,0.001]
[1770653898553,4.86357667,2056.2,2055.2,1.21741434]
[1770653898884,4.86357667,2056.2,2055.2,0.001]
[1770653899056,4.86357667,2056.3,2055.2,1.21742322]
[1770653899254,4.86357667,2056.3,2055.3,1.68462866]
[1770653900469,4.86357667,2056.3,2055.4,2.90093692]
[1770653900670,4.86357667,2056.3,2055.4,6.77093692]
[1770653900866,4.61275798,2056.4,2055.5,1.68462866]
[1770653901686,6.69887676,2057.1,2055.5,1.68462866]
[1770653901968,1.21559856,2056.7,2055.6,1.68462866]
[1770653902594,1.21559856,2056.7,2055.8,1.71603503]
[1770653902892,1.21559856,2056.7,2055.5,3.87]
[1770653902893,1.21559856,2056.7,2055.5,5.08619764]
[1770653903492,1.83559046,2056.5,2055.5,3.76483073]
[1770653904185,1.21559856,2056.7,2055.5,3.76483073]
[1770653905389,1.21559856,2056.7,2055.6,1.68462866]
[1770653906200,1.21559856,2056.7,2055.6,1.68562866]
[1770653906394,0.002,2056.5,2055.6,1.68562866]
[1770653906989,0.002,2056.5,2055.7,1.21613075]
[1770653907585,0.002,2056.5,2055.9,0.5]
[1770653908097,0.002,2056.5,2056.0,1.68462866]
[1770653909172,0.002,2056.5,2055.9,1.71596851]
[1770653909375,0.002,2056.5,2055.9,1.21596851]
[1770653910094,0.002,2056.5,2056.0,2.90058183]
[1770653912297,0.002,2056.7,2056.1,1.68462866]
[1770653912687,0.002,2056.7,2056.2,2.18462866]
[1770653913089,0.002,2056.7,2056.2,0.5]
[1770653913483,0.002,2056.7,2056.3,1.2157759]
[1770653913875,0.002,2056.7,2056.2,5.36318368]
[1770653913876,0.002,2056.7,2056.2,1.71578734]
[1770653914070,0.002,2056.7,2056.2,1.21578734]
[1770653915096,0.002,2056.7,2056.2,1.21581021]
[1770653915805,0.002,2056.7,2056.1,1.21589416]
[1770653916176,0.002,2056.7,2056.1,2.90052282]
[1770653916374,0.002,2056.8,2056.1,1.21589416]
[1770653916586,0.002,2057.1,2056.2,1.68462866]
[1770653917674,0.002,2057.1,2056.4,0.5]
[1770653917977,0.002,2057.1,2056.4,1.2157124]
[1770653919204,0.002,2056.9,2056.4,1.2157124]
[1770653919403,0.002,2056.9,2056.2,1.21581315]
[1770653919705,0.002,2056.9,2056.1,1.21585284]
[1770653919897,0.002,2056.9,2056.1,4.86357147]
[1770653921310,0.002,2056.9,2056.2,1.68462866]
[1770653922004,0.002,2056.9,2056.3,1.2157759]
[1770653922803,0.002,2056.9,2056.5,0.5]
[1770653923409,0.002,2056.9,2056.3,1.2157759]
[1770653923906,0.002,2056.9,2056.2,1.21580214]
[1770653926204,0.002,2056.9,2055.9,1.68462866]
[1770653926408,1.80978422,2056.9,2055.6,0.001]
[1770653926597,10.23433964,2056.7,2055.6,0.001]
[1770653926797,1.80778422,2056.6,2055.6,0.001]
[1770653927819,1.80778422,2056.3,2055.4,0.001]
[1770653928131,1.80778422,2056.1,2055.0,0.001]
[1770653928287,3.02373752,2056.0,2055.0,0.001]
[1770653928493,1.2159533,2056.0,2055.0,0.001]
[1770653929010,3.02373752,2056.0,2055.0,0.001]
[1770653929214,1.2159533,2056.0,2055.0,0.001]
[1770653929795,3.02373752,2056.0,2055.0,0.001]
[1770653931090,1.80778422,2055.9,2055.0,0.001]
[1770653931298,1.80778422,2055.9,2055.2,0.001]
[1770653933098,1.2160716,2055.8,2055.2,0.001]
[1770653934488,1.80778422,2055.7,2055.2,0.001]
[1770653935104,1.21618992,2055.6,2055.2,0.001]
[1770653937422,4.8642603,2056.0,2055.2,0.001]
[1770653937604,1.04200258,2055.9,2055.2,0.001]
[1770653937800,1.04200258,2055.8,2055.2,0.001]
[1770653938026,4.8642603,2056.0,2055.2,0.001]
[1770653938719,4.86369384,2056.1,2055.2,1.79305017]
[1770653938915,1.04181038,2056.0,2055.2,1.79305017]
[1770653939119,4.86369384,2056.1,2055.2,1.79305017]
[1770653939287,4.86369384,2056.1,2055.3,1.21636744]
[1770653940626,4.86369384,2056.1,2055.2,3.00943188]
[1770653940823,1.80778422,2056.0,2055.2,0.001]
[1770653941124,1.04162022,2055.9,2055.2,3.00946572]
[1770653941298,4.86369384,2056.1,2055.2,3.00946572]
[1770653941992,1.04152606,2056.0,2055.2,1.21742211]
[1770653942196,4.86369384,2056.1,2055.2,1.21742211]
[1770653942809,4.86369384,2056.1,2055.2,0.001]
[1770653943018,1.04156434,2056.0,2055.4,0.001]
[1770653943200,0.002,2055.9,2055.4,0.001]
[1770653946921,0.002,2055.9,2055.4,1.79305017]
[1770653947604,0.002,2055.9,2055.6,0.5]
[1770653948037,0.002,2055.9,2055.4,0.001]
[1770653948234,0.002,2055.9,2055.4,1.21730493]
[1770653949608,0.002,2055.9,2055.4,0.001]
[1770653949936,0.002,2056.1,2055.5,1.79205017]
[1770653950737,0.002,2056.1,2055.4,0.001]
[1770653952105,0.002,2056.1,2055.4,1.79305017]
[1770653952738,0.002,2056.1,2055.6,2.29205017]
[1770653953817,0.002,2056.1,2055.7,1.21613075]
[1770653954529,0.002,2056.1,2055.6,3.00819665]
[1770653956606,0.002,2055.9,2055.6,3.00819665]
[1770653957315,0.002,2055.9,2055.5,1.21620801]
[1770653957629,0.002,2055.9,2055.6,1.21617402]
[1770653957826,0.002,2055.9,2055.4,0.001]
[1770653958623,1.04727971,2055.8,2055.4,0.001]
[1770653958839,0.002,2055.9,2055.4,0.001]
[1770653961856,1.04756307,2055.8,2055.4,0.001]
[1770653962057,2.82366977,2055.7,2055.1,0.001]
[1770653962262,2.82366977,2055.7,2054.9,0.001]
[1770653962263,1.21624908,2055.5,2054.9,0.001]
[1770653962552,1.04756307,2055.4,2054.9,0.003]
[1770653962746,1.04756307,2055.3,2054.9,0.003]
[1770653963044,1.04756307,2055.2,2054.9,0.003]
[1770653963250,1.04756307,2055.1,2054.9,0.003]
[1770653963450,1.21624908,2055.5,2054.9,0.003]
[1770653963622,1.04757843,2055.4,2054.9,0.003]
[1770653963822,1.04757843,2055.3,2054.9,0.003]
[1770653964022,1.04757843,2055.2,2054.9,0.003]
[1770653964251,1.21654501,2055.0,2054.5,0.001]
[1770653964443,1.04757843,2054.9,2054.5,0.003]
[1770653964641,1.04757843,2054.8,2054.5,0.003]
[1770653964824,1.04757843,2054.7,2054.5,0.001]
[1770653965024,1.21654501,2055.0,2054.3,0.001]
[1770653965025,1.04757843,2054.6,2054.3,0.001]
[1770653965265,1.21654501,2055.0,2054.3,0.001]
[1770653965266,1.04757843,2054.5,2054.3,0.001]
[1770653965433,1.04757843,2054.4,2054.3,0.001]
[1770653965928,1.04757843,2054.4,2054.1,0.001]
[1770653966129,3.398,2054.7,2054.1,0.001]
[1770653966130,1.04757843,2054.3,2054.1,0.003]
[1770653966430,1.21701879,2054.2,2054.1,0.001]
[1770653967268,4.61472413,2054.7,2054.1,0.001]
[1770653967556,1.04391748,2054.6,2054.2,0.002]
[1770653967758,4.61472413,2054.7,2054.2,0.002]
[1770653968068,1.04389582,2054.6,2054.2,0.002]
[1770653968240,4.61472413,2054.7,2054.2,0.002]
[1770653968442,1.04319796,2054.6,2054.2,0.002]
[1770653968640,4.61472413,2054.7,2054.2,0.002]
[1770653968836,1.04321567,2054.6,2054.2,0.002]
[1770653969040,4.61472413,2054.7,2054.2,0.002]
[1770653969334,4.61472413,2054.7,2054.5,0.001]
[1770653969540,4.61472413,2054.7,2054.2,0.002]
[1770653969944,4.61472413,2054.7,2054.3,0.001]
[1770653970476,1.04223252,2054.6,2054.1,0.001]
[1770653970641,6.39083083,2054.7,2054.1,0.003]
[1770653970831,1.04225345,2054.6,2054.1,0.003]
[1770653971052,6.39083083,2054.7,2054.1,0.003]
[1770653971350,1.04225277,2054.6,2054.1,0.003]
[1770653971654,4.61472413,2054.7,2054.1,0.003]
[1770653972159,3.398,2054.7,2054.2,0.002]
[1770653972528,4.61472335,2054.7,2054.2,0.002]
[1770653974227,3.398,2054.7,2054.2,0.002]
[1770653974656,4.61472923,2054.7,2054.2,0.002]
[1770653976156,1.7761067,2054.6,2054.1,0.002]
[1770653976353,4.61472923,2054.7,2054.1,0.002]
[1770653977558,1.04024073,2054.6,2054.1,0.002]
[1770653977745,6.39083593,2054.7,2054.1,0.002]
[1770653977933,1.04029578,2054.6,2054.1,0.002]
[1770653978129,6.39083593,2054.7,2054.1,0.002]
[1770653978335,1.04030005,2054.6,2054.1,0.002]
[1770653978531,2.25714113,2054.5,2053.6,3.76483073]
[1770653978757,2.81625692,2054.4,2053.4,0.001]
[1770653979057,1.04015022,2054.3,2053.4,0.001]
[1770653979259,3.4,2054.2,2053.4,1.21848022]
[1770653979756,3.4,2054.2,2053.4,0.001]
[1770653980352,1.04006574,2054.1,2053.4,0.001]
[1770653980534,1.21713729,2054.0,2053.4,0.001]
[1770653980937,2.81615897,2053.9,2053.4,0.001]
[1770653981158,1.04005227,2053.8,2053.2,0.001]
[1770653981456,3.4,2053.7,2053.2,0.001]
[1770653982253,3.4,2053.7,2052.3,1.21811551]
[1770653982254,1.7761067,2053.6,2052.3,1.21811551]
[1770653982437,1.7761067,2053.6,2052.2,3.09195249]
[1770653982438,1.21743364,2053.5,2052.2,3.09195249]
[1770653982835,1.03936509,2053.4,2052.2,3.09195249]
[1770653983056,2.99354034,2053.5,2053.4,0.001]
[1770653983259,4.03294794,2053.5,2052.2,3.09195249]
[1770653983433,2.8155143,2053.4,2052.2,3.09195249]
[1770653983637,1.0394076,2053.3,2052.5,0.001]
[1770653983838,3.401,2053.2,2052.5,0.001]
[1770653984035,3.401,2053.2,2052.2,1.21920485]
[1770653984036,1.7761067,2053.1,2052.2,0.001]
[1770653984438,1.29112621,2052.5,2051.8,0.001]
[1770653984642,4.439749,2052.4,2051.1,1.21885817]
[1770653984940,3.401,2052.4,2051.1,1.21885817]
[1770653985285,4.61902679,2052.5,2051.5,1.87374764]
[1770653985965,0.07309942,2052.4,2051.5,0.001]
[1770653986177,1.81338431,2052.3,2051.5,0.001]
[1770653986584,1.21820485,2052.2,2051.5,0.001]
[1770653987441,3.402,2052.1,2051.5,0.001]
[1770653989251,1.21832358,2052.0,2051.5,0.001]
[1770653990545,3.402,2052.1,2051.5,1.77981446]
[1770653991152,3.402,2052.1,2051.6,1.21856112]
[1770653995249,3.402,2052.1,2051.8,0.001]
[1770653995470,4.87189336,2052.6,2051.8,0.001]
[1770653995471,1.21784879,2052.8,2051.8,0.001]
[1770653995688,3.404,2052.6,2051.8,1.77981446]
[1770653997069,1.21782869,2052.9,2051.8,1.77981446]
[1770653997447,1.21782869,2052.9,2051.9,1.21838296]
[1770653997851,1.21782869,2052.9,2052.0,1.77881446]
[1770653998558,3.404,2053.0,2052.0,1.77881446]
[1770653999350,3.404,2053.0,2052.1,1.21826421]
[1770653999561,3.404,2053.0,2052.2,1.77881446]
[1770654000482,4.10628199,2054.0,2052.5,1.77881446]
[1770654000694,1.81338431,2053.9,2052.3,1.77881446]
[1770654000859,1.88648373,2053.7,2052.3,1.77881446]
[1770654001054,2.85018436,2053.6,2052.3,1.77881446]
[1770654001270,1.81338431,2053.4,2052.1,1.21826421]
[1770654001468,1.21761153,2053.2,2052.5,0.5]
[1770654001762,1.21761153,2053.2,2052.1,1.21826421]
[1770654002076,1.03765071,2053.1,2052.1,1.21826421]
[1770654002277,1.03797978,2053.0,2052.1,1.21826421]
[1770654002458,1.81338431,2053.1,2052.1,1.21826421]
[1770654002657,2.85189289,2053.0,2051.9,1.21834966]
[1770654002882,2.85189289,2052.9,2051.9,1.21834966]
[1770654003070,1.81338431,2052.9,2052.0,1.2183054]
[1770654003279,1.0392898,2052.8,2051.8,1.2194033]
[1770654003459,1.21796745,2052.6,2051.8,0.001]
[1770654003659,8.27586982,2052.7,2051.8,0.001]
[1770654003660,4.6219347,2052.7,2051.8,1.77981446]
[1770654004759,4.6219347,2052.7,2051.8,0.001]
[1770654006381,3.404,2052.7,2052.0,2.27881446]
[1770654006683,1.73118521,2053.2,2052.0,2.27881446]
[1770654006890,0.002,2052.7,2052.1,1.77881446]
[1770654007587,0.002,2052.7,2052.2,2.99701931]
[1770654007898,0.002,2052.9,2052.2,2.99701931]
[1770654008061,0.002,2052.9,2052.3,1.77881446]
[1770654008258,1.73118521,2053.7,2052.4,1.77881446]
[1770654008459,0.002,2053.8,2052.8,1.77881446]
[1770654008688,0.002,2053.8,2053.0,1.77881446]
[1770654009564,0.002,2053.8,2053.1,2.99648529]
[1770654010461,4.6209196,2054.4,2053.2,1.77881446]
[1770654010989,0.002,2054.5,2053.4,1.77881446]
[1770654011589,0.002,2054.5,2053.5,1.21743364]
[1770654011767,0.002,2054.5,2053.6,1.77881446]
[1770654013807,0.002,2054.5,2053.7,2.99612954]
[1770654013987,0.002,2054.7,2053.8,1.77881446]
[1770654015306,1.21634674,2055.4,2054.2,1.69300828]
[1770654015604,1.21634674,2055.4,2054.3,1.69300828]
[1770654015787,0.002,2055.5,2054.4,1.21690031]
[1770654016476,0.002,2055.5,2054.6,1.69300828]
[1770654016677,0.002,2055.9,2055.0,1.69300828]
[1770654017000,0.002,2056.1,2055.1,1.69300828]
[1770654017703,0.002,2056.6,2055.8,1.69300828]
[1770654018000,0.002,2056.6,2055.4,5.19740828]
[1770654018239,0.002,2056.6,2055.4,3.402]
[1770654018378,1.84124664,2056.6,2055.4,4.61830436]
[1770654018579,1.84124664,2056.6,2055.0,6.55905874]
[1770654018580,1.91234606,2056.5,2055.0,6.55905874]
[1770654018789,1.81852554,2056.3,2055.2,1.2164216]
[1770654019081,3.404,2056.6,2055.5,1.21621798]
[1770654019285,5.14942612,2056.6,2055.2,4.86567614]
[1770654019488,5.14942612,2056.6,2055.1,1.21645611]
[1770654019489,1.74542612,2056.2,2055.1,1.21645611]